Workbook

Sheet 貸借対照表 (hidden)
D1: *出力条件
D2: *会計年度 ： H28
D3: *出力帳票選択 ： 財務書類
D4: *団体区分 ： 会計別
D5: *団体／会計コード ： 001 ／ 01 一般会計等 ／ 一般会計
D6: *出力範囲 ： 年次
D7: *出力金額単位 ： 円
D9: 貸借対照表
D10: （平成２９年３月３１日現在）
AA11: （単位：円）
A12: 科目コード | B12: 科目コー | D12: 科目 | P12: 金額 | R12: 科目 | Z12: 金額
D13: 【資産の部】 | R13: 【負債の部】
A14: 1020000 | B14: 1590000 | E14: 固定資産 | P14: 54826410977 | S14: 固定負債 | Z14: 25055942048 | AD14: =IF(AND(AD15="-",AD43="-",AD46="-"),"-",SUM(AD15,AD43,AD46)) -> 54826410977 | AE14: =IF(COUNTIF(AE15:AE19,"-")=COUNTA(AE15:AE19),"-",SUM(AE15:AE19)) -> 25055942048
A15: 1030000 | B15: 1600000 | F15: 有形固定資産 | P15: 51400853540 | T15: 地方債 | Z15: 19437392694 | AD15: =IF(AND(AD16="-",AD32="-",COUNTIF(AD41:AD42,"-")=COUNTA(AD41:AD42)),"-",SUM(AD16,AD32,AD41:AD42)) -> 51400853540 | AE15: 19437392694
A16: 1040000 | B16: 1610000 | G16: 事業用資産 | P16: 38357064249 | T16: 長期未払金 | Z16: - | AD16: =IF(COUNTIF(AD17:AD31,"-")=COUNTA(AD17:AD31),"-",SUM(AD17:AD31)) -> 38357064249 | AE16: -
A17: 1050000 | B17: 1620000 | H17: 土地 | P17: 25534427820 | T17: 退職手当引当金 | Z17: 5517048354 | AD17: 25534427820 | AE17: 5517048354
A18: 1060000 | B18: 1630000 | H18: 立木竹 | P18: - | T18: 損失補償等引当金 | Z18: 101501000 | AD18: - | AE18: 101501000
A19: 1070000 | B19: 1640000 | H19: 建物 | P19: 13912604575 | T19: その他 | Z19: - | AD19: 13912604575 | AE19: -
A20: 1080000 | B20: 1650000 | H20: 建物減価償却累計額 | P20: -1343131583 | S20: 流動負債 | Z20: 213752537 | AD20: -1343131583 | AE20: =IF(COUNTIF(AE21:AE28,"-")=COUNTA(AE21:AE28),"-",SUM(AE21:AE28)) -> 213752537
A21: 1090000 | B21: 1660000 | H21: 工作物 | P21: 255511944 | T21: 1年内償還予定地方債 | Z21: - | AD21: 255511944 | AE21: -
A22: 1100000 | B22: 1670000 | H22: 工作物減価償却累計額 | P22: -33668507 | T22: 未払金 | Z22: - | AD22: -33668507 | AE22: -
A23: 1110000 | B23: 1680000 | H23: 船舶 | P23: - | T23: 未払費用 | Z23: - | AD23: - | AE23: -
A24: 1120000 | B24: 1690000 | H24: 船舶減価償却累計額 | P24: - | T24: 前受金 | Z24: - | AD24: - | AE24: -
A25: 1130000 | B25: 1700000 | H25: 浮標等 | P25: - | T25: 前受収益 | Z25: - | AD25: - | AE25: -
A26: 1140000 | B26: 1710000 | H26: 浮標等減価償却累計額 | P26: - | T26: 賞与等引当金 | Z26: 258699272 | AD26: - | AE26: 258699272
A27: 1150000 | B27: 1720000 | H27: 航空機 | P27: - | T27: 預り金 | Z27: -44946735 | AD27: - | AE27: -44946735
A28: 1160000 | B28: 1730000 | H28: 航空機減価償却累計額 | P28: - | T28: その他 | Z28: - | AD28: - | AE28: -
A29: 1170000 | B29: 1580000 | H29: その他 | P29: - | R29: 負債合計 | Z29: 25269694585 | AD29: - | AE29: =IF(AND(AE14="-",AE20="-"),"-",SUM(AE14,AE20)) -> 25269694585
A30: 1180000 | H30: その他減価償却累計額 | P30: - | R30: 【純資産の部】 | AD30: -
A31: 1190000 | B31: 1750000 | H31: 建設仮勘定 | P31: 31320000 | S31: 固定資産等形成分 | Z31: 56508018890 | AD31: 31320000 | AE31: 56508018890
A32: 1200000 | B32: 1760000 | G32: インフラ資産 | P32: 13002190515 | S32: 余剰分（不足分） | Z32: -24008570818 | AD32: =IF(COUNTIF(AD33:AD40,"-")=COUNTA(AD33:AD40),"-",SUM(AD33:AD40)) -> 13002190515 | AE32: -24008570818
A33: 1210000 | H33: 土地 | P33: 10763517256 | AD33: 10763517256
A34: 1220000 | H34: 建物 | P34: 116045417 | AD34: 116045417
A35: 1230000 | H35: 建物減価償却累計額 | P35: -14387497 | AD35: -14387497
A36: 1240000 | H36: 工作物 | P36: 2363078462 | AD36: 2363078462
A37: 1250000 | H37: 工作物減価償却累計額 | P37: -226063123 | AD37: -226063123
A38: 1260000 | H38: その他 | P38: - | AD38: -
A39: 1270000 | H39: その他減価償却累計額 | P39: - | AD39: -
A40: 1280000 | H40: 建設仮勘定 | P40: - | AD40: -
A41: 1290000 | G41: 物品 | P41: 109035168 | AD41: 109035168
A42: 1300000 | G42: 物品減価償却累計額 | P42: -67436392 | AD42: -67436392
A43: 1310000 | F43: 無形固定資産 | P43: 111276157 | AD43: =IF(COUNTIF(AD44:AD45,"-")=COUNTA(AD44:AD45),"-",SUM(AD44:AD45)) -> 111276157
A44: 1320000 | G44: ソフトウェア | P44: 111275935 | AD44: 111275935
A45: 1330000 | G45: その他 | P45: 222 | AD45: 222
A46: 1340000 | F46: 投資その他の資産 | P46: 3314281280 | AD46: =IF(COUNTIF(AD47:AD58,"-")=COUNTA(AD47:AD58),"-",SUM(AD47,AD51:AD54,AD57:AD58)) -> 3314281280
A47: 1350000 | G47: 投資及び出資金 | P47: 1698991000 | AD47: =IF(COUNTIF(AD48:AD50,"-")=COUNTA(AD48:AD50),"-",SUM(AD48:AD50)) -> 1698991000
A48: 1360000 | H48: 有価証券 | P48: - | AD48: -
A49: 1370000 | H49: 出資金 | P49: 1698991000 | AD49: 1698991000
A50: 1380000 | H50: その他 | P50: - | AD50: -
A51: 1390000 | G51: 投資損失引当金 | P51: -3000000 | AD51: -3000000
A52: 1400000 | G52: 長期延滞債権 | P52: 215800692 | AD52: 215800692
A53: 1410000 | G53: 長期貸付金 | P53: 79405500 | AD53: 79405500
A54: 1420000 | G54: 基金 | P54: 1359186383 | AD54: =IF(COUNTIF(AD55:AD56,"-")=COUNTA(AD55:AD56),"-",SUM(AD55:AD56)) -> 1359186383
A55: 1430000 | H55: 減債基金 | P55: - | AD55: -
A56: 1440000 | H56: その他 | P56: 1359186383 | AD56: 1359186383
A57: 1450000 | G57: その他 | P57: - | AD57: -
A58: 1460000 | G58: 徴収不能引当金 | P58: -36102295 | AD58: -36102295
A59: 1470000 | E59: 流動資産 | P59: 2942731680 | AD59: =IF(COUNTIF(AD60:AD68,"-")=COUNTA(AD60:AD68),"-",SUM(AD60:AD63,AD66:AD68)) -> 2942731680
A60: 1480000 | F60: 現金預金 | P60: 1082918998 | AD60: 1082918998
A61: 1490000 | F61: 未収金 | P61: 185669888 | AD61: 185669888
A62: 1500000 | F62: 短期貸付金 | P62: 0 | AD62: 0
A63: 1510000 | F63: 基金 | P63: 1681607913 | AD63: =IF(COUNTIF(AD64:AD65,"-")=COUNTA(AD64:AD65),"-",SUM(AD64:AD65)) -> 1681607913
A64: 1520000 | G64: 財政調整基金 | P64: 1681433568 | AD64: 1681433568
A65: 1530000 | G65: 減債基金 | P65: 174345 | AD65: 174345
A66: 1540000 | F66: 棚卸資産 | P66: - | AD66: -
A67: 1550000 | F67: その他 | P67: - | AD67: -
A68: 1560000 | B68: 1740000 | F68: 徴収不能引当金 | P68: -7465119 | R68: 純資産合計 | Z68: 32499448072 | AD68: -7465119 | AE68: =IF(AND(AE31="-",AE32="-",#REF!="-"),"-",SUM(AE31,AE32,#REF!)) -> 
A69: 1010000 | B69: 1570000 | D69: 資産合計 | P69: 57769142657 | R69: 負債及び純資産合計 | Z69: 57769142657 | AD69: =IF(AND(AD14="-",AD59="-",#REF!="-"),"-",SUM(AD14,AD59,#REF!)) ->  | AE69: =IF(AND(AE29="-",AE68="-"),"-",SUM(AE29,AE68)) -> 
E71: ※ 下位項目との金額差は、単位未満の四捨五入によるものです。

Sheet 純資産変動計算書 (hidden)
C1: *出力条件
C2: *会計年度 ： H28
C3: *出力帳票選択 ： 財務書類
C4: *団体区分 ： 会計別
C5: *団体／会計コード ： 001 ／ 01 一般会計等 ／ 一般会計
C6: *出力範囲 ： 年次
C7: *出力金額単位 ： 円
C9: 純資産変動計算書
C10: 自 平成２８年４月１日
C11: 至 平成２９年３月３１日
P12: （単位：円）
C13: 科目 | K13: 合計
A14: 科目コード | M14: 固定資産 等形成分 | O14: 余剰分 （不足分） | Q14: 他団体出資等分
A15: 3010000 | C15: 前年度末純資産残高 | K15: 34588576328 | M15: 57280128661 | O15: -22691552333 | Q15: - | U15: =IF(COUNTIF(V15:X15,"-")=COUNTA(V15:X15),"-",SUM(V15:X15)) -> - | V15: - | W15: - | X15: -
A16: 3020000 | D16: 純行政コスト（△） | K16: -23273570027 | O16: -23273570027 | Q16: - | U16: - | V16: - | W16: - | X16: -
A17: 3030000 | D17: 財源 | K17: 21133229672 | O17: 21133229672 | Q17: =IF(COUNTIF(Q18:Q19,"-")=COUNTA(Q18:Q19),"-",SUM(Q18:Q19)) -> - | U17: - | V17: - | W17: =IF(COUNTIF(W18:W19,"-")=COUNTA(W18:W19),"-",SUM(W18:W19)) -> - | X17: -
A18: 3040000 | E18: 税収等 | K18: 15280332856 | O18: 15280332856 | Q18: - | U18: - | V18: - | W18: - | X18: -
A19: 3050000 | E19: 国県等補助金 | K19: 5852896816 | O19: 5852896816 | Q19: - | U19: - | V19: - | W19: - | X19: -
A20: 3060000 | D20: 本年度差額 | K20: -2140340355 | O20: -2140340355 | Q20: =IF(COUNTIF(Q16:Q17,"-")=COUNTA(Q16:Q17),"-",SUM(Q16:Q17)) -> - | U20: - | V20: - | W20: =IF(COUNTIF(W16:W17,"-")=COUNTA(W16:W17),"-",SUM(W16:W17)) -> - | X20: -
A21: 3070000 | D21: 固定資産等の変動（内部変動） | M21: -823321870 | O21: 823321870 | U21: - | V21: =IF(COUNTA(V22:V25)=COUNTIF(V22:V25,"-"),"-",SUM(V22,V24,V23,V25)) -> - | W21: =IF(COUNTA(W22:W25)=COUNTIF(W22:W25,"-"),"-",SUM(W22,W24,W23,W25)) -> - | X21: -
A22: 3080000 | E22: 有形固定資産等の増加 | M22: 434455917 | O22: -434455917 | U22: - | V22: - | W22: - | X22: -
A23: 3090000 | E23: 有形固定資産等の減少 | M23: -919015836 | O23: 919015836 | U23: - | V23: - | W23: - | X23: -
A24: 3100000 | E24: 貸付金・基金等の増加 | M24: 628824081 | O24: -628824081 | U24: - | V24: - | W24: - | X24: -
A25: 3110000 | E25: 貸付金・基金等の減少 | M25: -967586032 | O25: 967586032 | U25: - | V25: - | W25: - | X25: -
A26: 3120000 | D26: 資産評価差額 | K26: - | M26: - | U26: =IF(COUNTIF(V26:X26,"-")=COUNTA(V26:X26),"-",SUM(V26:X26)) -> - | V26: - | W26: - | X26: -
A27: 3130000 | D27: 無償所管換等 | K27: 51212099 | M27: 51212099 | U27: =IF(COUNTIF(V27:X27,"-")=COUNTA(V27:X27),"-",SUM(V27:X27)) -> - | V27: - | W27: - | X27: -
A28: 3140000 | D28: その他 | K28: - | M28: - | O28: - | U28: =IF(COUNTIF(V28:X28,"-")=COUNTA(V28:X28),"-",SUM(V28:X28)) -> - | V28: - | W28: - | X28: -
A29: 3150000 | D29: 本年度純資産変動額 | K29: -2089128256 | M29: -772109771 | O29: -1317018485 | Q29: =IF(AND(Q20="-",COUNTIF(#REF!,"-")=COUNTA(#REF!)),"-",SUM(Q20,#REF!)) ->  | U29: =IF(COUNTIF(V29:X29,"-")=COUNTA(V29:X29),"-",SUM(V29:X29)) -> - | V29: =IF(AND(V21="-",COUNTIF(V26:V27,"-")=COUNTA(V26:V27),V28="-"),"-",SUM(V21,V26:V27,V28)) -> - | W29: =IF(AND(W20="-",W21="-",COUNTIF(W26:W27,"-")=COUNTA(W26:W27),W28="-"),"-",SUM(W20,W21,W26:W27,W28)) -> - | X29: -
A30: 3160000 | C30: 本年度末純資産残高 | K30: 32499448072 | M30: 56508018890 | O30: -24008570818 | Q30: =IF(AND(Q15="-",Q29="-"),"-",SUM(Q15,Q29)) ->  | U30: =IF(COUNTIF(V30:X30,"-")=COUNTA(V30:X30),"-",SUM(V30:X30)) -> - | V30: - | W30: - | X30: -
D32: ※ 下位項目との金額差は、単位未満の四捨五入によるものです。

Sheet 行政コスト計算書 (hidden)
C1: *出力条件
C2: *会計年度 ： H28
C3: *出力帳票選択 ： 財務書類
C4: *団体区分 ： 会計別
C5: *団体／会計コード ： 001 ／ 01 一般会計等 ／ 一般会計
C6: *出力範囲 ： 年次
C7: *出力金額単位 ： 円
C9: 行政コスト計算書
C10: 自 平成２８年４月１日
C11: 至 平成２９年３月３１日
O12: （単位：円）
A13: 科目コード | C13: 科目 | N13: 金額
A14: 2020000 | D14: 経常費用 | N14: 24039892514
A15: 2030000 | E15: 業務費用 | N15: 11882284082
A16: 2040000 | F16: 人件費 | N16: 6607407140
A17: 2050000 | G17: 職員給与費 | N17: 3010742406
A18: 2060000 | G18: 賞与等引当金繰入額 | N18: 258699272
A19: 2070000 | G19: 退職手当引当金繰入額 | N19: 2880764179
A20: 2080000 | G20: その他 | N20: 457201283
A21: 2090000 | F21: 物件費等 | N21: 4912850183
A22: 2100000 | G22: 物件費 | N22: 3809393420
A23: 2110000 | G23: 維持補修費 | N23: 185550927
A24: 2120000 | G24: 減価償却費 | N24: 917905836
A25: 2130000 | G25: その他 | N25: -
A26: 2140000 | F26: その他の業務費用 | N26: 362026759
A27: 2150000 | G27: 支払利息 | N27: 208749338
A28: 2160000 | G28: 徴収不能引当金繰入額 | N28: 7465119
A29: 2170000 | G29: その他 | N29: 145812302
A30: 2180000 | E30: 移転費用 | N30: 12157608432
A31: 2190000 | F31: 補助金等 | N31: 3575542360
A32: 2200000 | F32: 社会保障給付 | N32: 5287415504
A33: 2210000 | F33: 他会計への繰出金 | N33: 3260879668
A34: 2220000 | F34: その他 | N34: 33770900
A35: 2230000 | D35: 経常収益 | N35: 766199487
A36: 2240000 | E36: 使用料及び手数料 | N36: 383924516
A37: 2250000 | E37: その他 | N37: 382274971
A38: 2010000 | C38: 純経常行政コスト | N38: -23273693027
A39: 2270000 | D39: 臨時損失 | N39: -123000
A40: 2280000 | E40: 災害復旧事業費 | N40: -
A41: 2290000 | E41: 資産除売却損 | N41: 0
A42: 2300000 | E42: 投資損失引当金繰入額 | N42: -
A43: 2310000 | E43: 損失補償等引当金繰入額 | N43: -238000
A44: 2320000 | E44: その他 | N44: 115000
A45: 2330000 | D45: 臨時利益 | N45: -
A46: 2340000 | E46: 資産売却益 | N46: -
A47: 2350000 | E47: その他 | N47: -
A48: 2260000 | C48: 純行政コスト | N48: -23273570027
D50: ※ 下位項目との金額差は、単位未満の四捨五入によるものです。

Sheet 資金収支計算書 (hidden)
C1: *出力条件
C2: *会計年度 ： H28
C3: *出力帳票選択 ： 財務書類
C4: *団体区分 ： 会計別
C5: *団体／会計コード ： 001 ／ 01 一般会計等 ／ 一般会計
C6: *出力範囲 ： 年次
C7: *出力金額単位 ： 円
C9: 資金収支計算書
C10: 自 平成２８年４月１日
C11: 至 平成２９年３月３１日
N12: （単位：円）
C13: 科目 | M13: 金額
A14: 科目コード
C15: 【業務活動収支】
A16: 4020000 | D16: 業務支出 | M16: 20645943222
A17: 4030000 | E17: 業務費用支出 | M17: 8488334790
A18: 4040000 | F18: 人件費支出 | M18: 4138828803
A19: 4050000 | F19: 物件費等支出 | M19: 3994944347
A20: 4060000 | F20: 支払利息支出 | M20: 208749338
A21: 4070000 | F21: その他の支出 | M21: 145812302
A22: 4080000 | E22: 移転費用支出 | M22: 12157608432
A23: 4090000 | F23: 補助金等支出 | M23: 3575542360
A24: 4100000 | F24: 社会保障給付支出 | M24: 5287415504
A25: 4110000 | F25: 他会計への繰出支出 | M25: 3260879668
A26: 4120000 | F26: その他の支出 | M26: 33770900
A27: 4130000 | D27: 業務収入 | M27: 21716991392
A28: 4140000 | E28: 税収等収入 | M28: 15406993718
A29: 4150000 | E29: 国県等補助金収入 | M29: 5662331816
A30: 4160000 | E30: 使用料及び手数料収入 | M30: 385545966
A31: 4170000 | E31: その他の収入 | M31: 262119892
A32: 4180000 | D32: 臨時支出 | M32: -
A33: 4190000 | E33: 災害復旧事業費支出 | M33: -
A34: 4200000 | E34: その他の支出 | M34: -
A35: 4210000 | D35: 臨時収入 | M35: -
A36: 4010000 | C36: 業務活動収支 | M36: 1071048170
C37: 【投資活動収支】
A38: 4230000 | D38: 投資活動支出 | M38: 1432827871
A39: 4240000 | E39: 公共施設等整備費支出 | M39: 434773917
A40: 4250000 | E40: 基金積立金支出 | M40: 342949741
A41: 4260000 | E41: 投資及び出資金支出 | M41: -
A42: 4270000 | E42: 貸付金支出 | M42: 655104213
A43: 4280000 | E43: その他の支出 | M43: -
A44: 4290000 | D44: 投資活動収入 | M44: 1523652713
A45: 4300000 | E45: 国県等補助金収入 | M45: 190565000
A46: 4310000 | E46: 基金取崩収入 | M46: 140000000
A47: 4320000 | E47: 貸付金元金回収収入 | M47: 1191659713
A48: 4330000 | E48: 資産売却収入 | M48: 1428000
A49: 4340000 | E49: その他の収入 | M49: -
A50: 4220000 | C50: 投資活動収支 | M50: 90824842
C51: 【財務活動収支】
A52: 4360000 | D52: 財務活動支出 | M52: 2121476028
A53: 4370000 | E53: 地方債償還支出 | M53: 2121476028
A54: 4380000 | E54: その他の支出 | M54: -
A55: 4390000 | D55: 財務活動収入 | M55: 1515923000
A56: 4400000 | E56: 地方債発行収入 | M56: 1515923000
A57: 4410000 | E57: その他の収入 | M57: -
A58: 4350000 | C58: 財務活動収支 | M58: -605553028
A59: 4420000 | C59: 本年度資金収支額 | M59: 556319984
A60: 4430000 | C60: 前年度末資金残高 | M60: 418526689
A61: 4435000 | C61: 比例連結割合変更に伴う差額 | M61: - | Q61: -
A62: 4440000 | C62: 本年度末資金残高 | M62: 974846673
A64: 4450000 | C64: 前年度末歳計外現金残高 | M64: 153019060
A65: 4460000 | C65: 本年度歳計外現金増減額 | M65: -44946735
A66: 4470000 | C66: 本年度末歳計外現金残高 | M66: 108072325
A67: 4480000 | C67: 本年度末現金預金残高 | M67: 1082918998
D69: ※ 下位項目との金額差は、単位未満の四捨五入によるものです。

Sheet 有形固定資産の明細
A2: 附属明細書
A3: 1.貸借対照表の内容に関する明細
A4: (1)資産項目の明細
A5: ①有形固定資産の明細 | P5: （単位：円）
A6: 区分 | C6: 前年度末残高 （A） | E6: 本年度増加額 （B） | G6: 本年度減少額 （C） | I6: 本年度末残高 （A)＋（B)-（C) （D） | K6: 本年度末 減価償却累計額 （E) | M6: 本年度償却額 （F) | O6: 差引本年度末残高 （D)－（E) （G)
A7: 事業用資産 | C7: 58849374826 | E7: 421783651 | G7: 0 | I7: 59271158477 | K7: 20914094228 | M7: 678833577 | O7: 38357064249
A8: 土地 | C8: 25456276950 | E8: 78150870 | G8: 0 | I8: 25534427820 | K8: 0 | M8: 0 | O8: 25534427820
A9: 立木竹 | C9: - | E9: - | G9: - | I9: - | K9: - | M9: - | O9: -
A10: 建物 | C10: 32322235798 | E10: 239792401 | G10: 0 | I10: 32562028199 | K10: 19992555207 | M10: 666713031 | O10: 12569472992
A11: 工作物 | C11: 1070862078 | E11: 72520380 | G11: 0 | I11: 1143382458 | K11: 921539021 | M11: 12120546 | O11: 221843437
A12: 船舶 | C12: - | E12: - | G12: - | I12: - | K12: - | M12: - | O12: -
A13: 浮標等 | C13: - | E13: - | G13: - | I13: - | K13: - | M13: - | O13: -
A14: 航空機 | C14: - | E14: - | G14: - | I14: - | K14: - | M14: - | O14: -
A15: その他 | C15: - | E15: - | G15: - | I15: - | K15: - | M15: - | O15: -
A16: 建設仮勘定 | C16: 0 | E16: 31320000 | G16: 0 | I16: 31320000 | K16: 0 | M16: 0 | O16: 31320000
A17: インフラ資産 | C17: 18559849978 | E17: 64765158 | G17: 1110000 | I17: 18623505136 | K17: 5621314621 | M17: 119548970 | O17: 13002190515
A18: 土地 | C18: 10750970749 | E18: 13656507 | G18: 1110000 | I18: 10763517256 | K18: 0 | M18: 0 | O18: 10763517256
A19: 建物 | C19: 268813234 | E19: 0 | G19: 0 | I19: 268813234 | K19: 167155314 | M19: 7013434 | O19: 101657920
A20: 工作物 | C20: 7540065995 | E20: 51108651 | G20: 0 | I20: 7591174646 | K20: 5454159307 | M20: 112535536 | O20: 2137015339
A21: その他 | C21: - | E21: - | G21: - | I21: - | K21: - | M21: - | O21: -
A22: 建設仮勘定 | C22: - | E22: - | G22: - | I22: - | K22: - | M22: - | O22: -
A23: 物品 | C23: 328219565 | E23: 4690000 | G23: 7550000 | I23: 325359565 | K23: 283760789 | M23: 31719098 | O23: 41598776
A24: 合計 | C24: 77737444369 | E24: 491238809 | G24: 8660000 | I24: 78220023178 | K24: 26819169638 | M24: 830101645 | O24: 51400853540

Sheet 有形固定資産の行政目的別明細
A7: ②有形固定資産の行政目的別明細 | T7: （単位：円）
A8: 区分 | C8: 生活インフラ・ 国土保全 | E8: 教育 | G8: 福祉 | I8: 環境衛生 | K8: 産業振興 | M8: 消防 | O8: 総務 | Q8: 未設定 | S8: 合計
A10: 事業用資産 | C10: 108783834 | E10: 25006297676 | G10: 1924356487 | I10: 627506225 | K10: 299174585 | M10: 161787613 | O10: 10229157829 | Q10: - | S10: 38357064249
A11: 土地 | C11: 108747902 | E11: 17164267092 | G11: 876664130 | I11: 625190740 | K11: 112817456 | M11: 41352379 | O11: 6605388121 | Q11: - | S11: 25534427820
A12: 立木竹 | C12: - | E12: - | G12: - | I12: - | K12: - | M12: - | O12: - | Q12: - | S12: -
A13: 建物 | C13: 35932 | E13: 7747871401 | G13: 1047692354 | I13: 2315485 | K13: 186357126 | M13: - | O13: 3585200694 | Q13: - | S13: 12569472992
A14: 工作物 | C14: - | E14: 94159183 | G14: 3 | I14: - | K14: 3 | M14: 120435234 | O14: 7249014 | Q14: - | S14: 221843437
A15: 船舶 | C15: - | E15: - | G15: - | I15: - | K15: - | M15: - | O15: - | Q15: - | S15: -
A16: 浮標等 | C16: - | E16: - | G16: - | I16: - | K16: - | M16: - | O16: - | Q16: - | S16: -
A17: 航空機 | C17: - | E17: - | G17: - | I17: - | K17: - | M17: - | O17: - | Q17: - | S17: -
A18: その他 | C18: - | E18: - | G18: - | I18: - | K18: - | M18: - | O18: - | Q18: - | S18: -
A19: 建設仮勘定 | C19: - | E19: - | G19: - | I19: - | K19: - | M19: - | O19: 31320000 | Q19: - | S19: 31320000
A20: インフラ資産 | C20: 13002190515 | E20: - | G20: - | I20: - | K20: - | M20: - | O20: - | Q20: - | S20: 13002190515
A21: 土地 | C21: 10763517256 | E21: - | G21: - | I21: - | K21: - | M21: - | O21: - | Q21: - | S21: 10763517256
A22: 建物 | C22: 101657920 | E22: - | G22: - | I22: - | K22: - | M22: - | O22: - | Q22: - | S22: 101657920
A23: 工作物 | C23: 2137015339 | E23: - | G23: - | I23: - | K23: - | M23: - | O23: - | Q23: - | S23: 2137015339
A24: その他 | C24: - | E24: - | G24: - | I24: - | K24: - | M24: - | O24: - | Q24: - | S24: -
A25: 建設仮勘定 | C25: - | E25: - | G25: - | I25: - | K25: - | M25: - | O25: - | Q25: - | S25: -
A26: 物品 | C26: 699078 | E26: 8862211 | G26: 440110 | I26: - | K26: - | M26: 4436014 | O26: 27161363 | Q26: - | S26: 41598776
A27: 合計 | C27: 13111673427 | E27: 25015159887 | G27: 1924796597 | I27: 627506225 | K27: 299174585 | M27: 166223627 | O27: 10256319192 | Q27: - | S27: 51400853540

Sheet 投資及び出資金
B1: ③投資及び出資金の明細
B2: 市場価格のあるもの | I2: （単位：円）
B3: 銘柄名 | C3: 株数・口数など （A） | D3: 時価単価 （B） | E3: 貸借対照表計上額 （A）×（B) （C) | F3: 取得単価 （D) | G3: 取得原価 （A）×（D) （E) | H3: 評価差額 （C）－（E) （F) | I3: （参考）財産に関する 調書記載額
E5: =IFERROR(C5*D5,"") -> 0 | G5: =IFERROR(C5*F5,"") -> 0 | H5: =IFERROR(E5-G5,"") -> 0
H6: 0
B7: 合計 | C7: =IFERROR(SUM(C4:C6),"") -> 0 | D7: =IFERROR(SUM(D4:D6),"") -> 0 | E7: =IFERROR(SUM(E4:E6),"") -> 0 | F7: =IFERROR(SUM(F4:F6),"") -> 0 | G7: =IFERROR(SUM(G4:G6),"") -> 0 | H7: =IFERROR(SUM(H5:H5),"") -> 0 | I7: =IFERROR(SUM(I4:I6),"") -> 0
B10: 市場価格のないもののうち連結対象団体（会計）に対するもの | K10: （単位：円）
B11: 相手先名 | C11: 出資金額 （貸借対照表計上額） （A) | D11: 資産 （B) | E11: 負債 （C) | F11: 純資産額 （B）－（C) （D) | G11: 資本金 （E) | H11: 出資割合（％） （A）/（E) （F) | I11: 実質価額 （D)×（F) （G) | J11: 投資損失引当金 計上額 （H) | K11: （参考）財産に関する 調書記載額
B13: 柏原市水道事業会計 | C13: 174086000 | D13: 11639046088 | E13: 5660530657 | F13: =IFERROR(D13-E13,"") -> 5978515431 | G13: 1083076115 | H13: =IFERROR(C13/G13,"") -> 0.1607329324 | I13: =IFERROR(F13*H13,"") -> 960944316.8 | K13: 記載なし
B14: 市立柏原病院事業会計 | C14: 1506655000 | D14: 6888520535 | E14: 7621360049 | F14: =IFERROR(D14-E14,"") -> -732839514 | G14: 667261008 | H14: =IFERROR(C14/G14,"") -> 2.257969493 | I14: =IFERROR(F14*H14,"") -> -1654729266 | K14: 記載なし
B15: 柏原市土地開発公社 | C15: 5000000 | D15: 888472674 | E15: 814545305 | F15: 73927369 | G15: 5000000 | H15: =IFERROR(C15/G15,"") -> 1 | I15: =IFERROR(F15*H15,"") -> 73927369 | K15: 5000000
B16: 柏原市健康推進財団 | C16: 3000000 | F16: =IFERROR(D16-E16,"") -> 0 | H16: =IFERROR(C16/G16,"") ->  | I16: =IFERROR(F16*H16,"") ->  | J16: 3000000 | K16: 3000000
B18: 合計 | C18: =IFERROR(SUM(C12:C17),"") -> 1688741000 | D18: =IFERROR(SUM(D12:D17),"") -> 19416039297 | E18: =IFERROR(SUM(E12:E17),"") -> 14096436011 | F18: =IFERROR(SUM(F13:F16),"") -> 5319603286 | G18: =IFERROR(SUM(G12:G17),"") -> 1755337123 | H18: - | I18: =IFERROR(SUM(I12:I17),"") -> -619857580.2 | J18: =IFERROR(SUM(J12:J17),"") -> 3000000 | K18: =IFERROR(SUM(K12:K17),"") -> 8000000
B21: 市場価格のないもののうち連結対象団体（会計）以外に対するもの | L21: （単位：円）
B22: 相手先名 | C22: 出資金額 （A) | D22: 資産 （B) | E22: 負債 （C) | F22: 純資産額 （B）－（C) （D) | G22: 資本金 （E) | H22: 出資割合（％） （A）/（E) （F) | I22: 実質価額 （D)×（F) （G) | J22: 強制評価減 （H) | K22: 貸借対照表計上額 （Ａ）－（Ｈ） （Ｉ） | L22: （参考）財産に関する 調書記載額
B24: 大阪湾広域臨海環境整備センター | C24: 200000 | D24: 43629675544 | E24: 29451202055 | F24: =IFERROR(D24-E24,"") -> 14178473489 | G24: 136900000 | H24: =IFERROR(C24/G24,"") -> 0.00146092038 | I24: =IFERROR(F24*H24,"") -> 20713620.88 | K24: =IFERROR(C24-J24,"") -> 200000 | L24: 200000
B25: (財)大阪府地域福祉推進財団 | C25: 480000 | D25: 1707334225 | E25: 96001807 | F25: =IFERROR(D25-E25,"") -> 1611332418 | G25: 422000000 | H25: =IFERROR(C25/G25,"") -> 0.001137440758 | I25: =IFERROR(F25*H25,"") -> 1832795.167 | K25: =IFERROR(C25-J25,"") -> 480000 | L25: 480000
B26: (財)砂防フロンティア整備推進機構 | C26: 300000 | D26: 3805931333 | E26: 1258425596 | F26: =IFERROR(D26-E26,"") -> 2547505737 | G26: 400000000 | H26: =IFERROR(C26/G26,"") -> 0.00075 | I26: =IFERROR(F26*H26,"") -> 1910629.303 | K26: =IFERROR(C26-J26,"") -> 300000 | L26: 300000
B27: （財）大阪みどりのトラスト協会 | C27: 100000 | D27: 431910659 | E27: 76379230 | F27: =IFERROR(D27-E27,"") -> 355531429 | G27: 100000000 | H27: =IFERROR(C27/G27,"") -> 0.001 | I27: =IFERROR(F27*H27,"") -> 355531.429 | K27: =IFERROR(C27-J27,"") -> 100000 | L27: 100000
B28: (財)大阪府暴力追放推進センター | C28: 1400000 | D28: 2625910943 | E28: 9125931 | F28: =IFERROR(D28-E28,"") -> 2616785012 | G28: 1900000000 | H28: =IFERROR(C28/G28,"") -> 0.0007368421053 | I28: =IFERROR(F28*H28,"") -> 1928157.377 | K28: =IFERROR(C28-J28,"") -> 1400000 | L28: 1400000
B29: 森林さきもり基金 | C29: 1800000 | D29: 2005904471 | E29: 1284564444 | F29: =IFERROR(D29-E29,"") -> 721340027 | G29: 201086000 | H29: =IFERROR(C29/G29,"") -> 0.008951393931 | I29: =IFERROR(F29*H29,"") -> 6456998.74 | K29: =IFERROR(C29-J29,"") -> 1800000 | L29: 1800000
B30: (財)大阪人権歴史資料館 | C30: 56000 | D30: 2037301928 | E30: 4552487 | F30: =IFERROR(D30-E30,"") -> 2032749441 | G30: 10000000 | H30: =IFERROR(C30/G30,"") -> 0.0056 | I30: =IFERROR(F30*H30,"") -> 11383396.87 | K30: =IFERROR(C30-J30,"") -> 56000 | L30: 56000
B31: (財)アジア・太平洋人権情報センター | C31: 814000 | D31: 621791113 | E31: 10861079 | F31: =IFERROR(D31-E31,"") -> 610930034 | G31: 509963826 | H31: =IFERROR(C31/G31,"") -> 0.001596191648 | I31: =IFERROR(F31*H31,"") -> 975161.418 | K31: =IFERROR(C31-J31,"") -> 814000 | L31: 814000
B32: 地方公共団体金融機構 | C32: 5100000 | D32: 24786267000000 | E32: 24545185000000 | F32: =IFERROR(D32-E32,"") -> 241082000000 | G32: 1660200000 | H32: =IFERROR(C32/G32,"") -> 0.003071919046 | I32: =IFERROR(F32*H32,"") -> 740584387.4 | K32: =IFERROR(C32-J32,"") -> 5100000 | L32: 5100000
F33: =IFERROR(D33-E33,"") -> 0 | H33: =IFERROR(C33/G33,"") ->  | I33: =IFERROR(F33*H33,"") ->  | K33: =IFERROR(C33-J33,"") -> 0
B34: 合計 | C34: =IFERROR(SUM(C23:C33),"") -> 10250000 | D34: =IFERROR(SUM(D23:D33),"") -> 24843132760216 | E34: =IFERROR(SUM(E23:E33),"") -> 24577376112629 | F34: =IFERROR(SUM(F24:F31),"") -> 24674647587 | G34: =IFERROR(SUM(G23:G33),"") -> 5340149826 | H34: - | I34: =IFERROR(SUM(I24:I31),"") -> 45556291.18 | J34: =IFERROR(SUM(J23:J33),"") -> 0 | K34: =IFERROR(SUM(K24:K32),"") -> 10250000 | L34: =IFERROR(SUM(L23:L33),"") -> 10250000

Sheet 基金
B1: ④基金の明細 | H1: （単位：円）
B2: 種類 | C2: 現金預金 | D2: 有価証券 | E2: 土地 | F2: その他 | G2: 合計 (貸借対照表計上額) | H2: (参考)財産に関する 調書記載額
B5: 減債基金 | C5: 174345 | G5: =SUM(C5:F5) -> 174345 | H5: 174345
B6: 財政調整基金 | C6: 1681433568 | G6: 1681433568 | H6: 1681433568
B7: 公共施設等整備基金 | C7: 24148065 | G7: 24148065 | H7: 24148065
B8: 公園等整備基金 | C8: 273853559 | G8: 273853559 | H8: 273853559
B9: 文化振興基金 | C9: 8950000 | G9: 8950000 | H9: 8950000
B10: ふるさと創生事業基金 | C10: 65046965 | G10: 65046965 | H10: 65046965
B11: 心身障害者福祉基金 | C11: 15350000 | G11: 15350000 | H11: 15350000
B12: 心身障害児福祉基金 | C12: 5400000 | G12: 5400000 | H12: 5400000
B13: 老人福祉基金 | C13: 319530000 | G13: 319530000 | H13: 319530000
B14: 奨学基金 | C14: 54000204 | G14: 54000204 | H14: 53384780
B15: 校外教授奨励基金 | C15: 1000000 | G15: 1000000 | H15: 1000000
B16: スポーツ振興基金 | C16: 39100000 | G16: 39100000 | H16: 39100000
B17: 文化・スポーツ国際交流基金 | C17: 228656659 | G17: 228656659 | H17: 228656659
B18: ふるさと基金 | C18: 294150931 | G18: 294150931 | H18: 428160931
B19: 更生資金貸付基金 | C19: 20000000 | G19: 20000000 | H19: 20000000
B20: 高額療養費貸付基金 | C20: 10000000 | G20: 10000000 | H20: 10000000
B22: 合計 | C22: =IFERROR(SUM(C4:C21),"") -> 3040794296 | D22: =IFERROR(SUM(D4:D21),"") -> 0 | E22: 0 | F22: 0 | G22: 3040794296 | H22: 3174188872

Sheet 貸付金
B1: ⑤貸付金の明細 | G1: （単位：円）
B2: 相手先名または種別 | C2: 長期貸付金 | E2: 短期貸付金 | G2: （参考） 貸付金計
C3: 貸借対照表計上額 | D3: 徴収不能引当金 計上額 | E3: 貸借対照表計上額 | F3: 徴収不能引当金 計上額
B4: 地方公営事業
B10: 一部事務組合・広域連合
B16: 地方独立行政法人
B22: 地方三公社
B28: 第三セクター等
B30: 柏原市健康推進財団 | C30: 50000000 | G30: 50000000
B34: その他の貸付金
B36: 奨学金貸付金 | C36: 29405500 | G36: 29405500
B40: 合計 | C40: =IFERROR(SUM(C5:C39),"") -> 79405500 | D40: =IFERROR(SUM(D5:D39),"") -> 0 | E40: =IFERROR(SUM(E5:E39),"") -> 0 | F40: =IFERROR(SUM(F5:F39),"") -> 0 | G40: =IFERROR(SUM(G5:G39),"") -> 79405500

Sheet 長期延滞債権
B1: ⑥長期延滞債権の明細 | D1: （単位：円）
B2: 相手先名または種別 | C2: 貸借対照表計上額 | D2: 徴収不能引当金計上額
B3: 【貸付金】
B5: 第三セクター等
B7: 柏原市健康推進財団貸付金元利収入 | C7: 1000000 | D7: 1000000
B9: その他の貸付金
B13: 小計 | C13: =IFERROR(SUM(C6:C12),"") -> 1000000 | D13: =IFERROR(SUM(D6:D12),"") -> 1000000
B14: 【未収金】
B16: 税等未収金
B18: 市民税 | C18: 69995167 | D18: 5459623
B19: 固定資産税 | C19: 81225031 | D19: 5117177
B20: 軽自動車税 | C20: 1099067 | D20: 145077
B21: 都市計画税 | C21: 16911191 | D21: 1166872
B23: その他の未収金
B25: 私立保育所保育料 | C25: 14100340 | D25: 225605
B26: 放課後児童会負担金 | C26: 1306550
B27: 放課後児童会延長保育負担金 | C27: 5475
B28: 公立保育所保育料 | C28: 7330871 | D28: 175941
B29: 公立幼稚園保育料 | C29: 15000
B30: サンヒル柏原土地建物貸付収入 | C30: 22812000 | D30: 22812000
B32: 小計 | C32: =IFERROR(SUM(C15:C31),"") -> 214800692 | D32: =IFERROR(SUM(D15:D31),"") -> 35102295
B33: 合計 | C33: =IFERROR(SUM(C13,C32),"") -> 215800692 | D33: =IFERROR(SUM(D13,D32),"") -> 36102295

Sheet 未収金
B1: ⑦未収金の明細 | D1: （単位：円）
B2: 相手先名または種別 | C2: 貸借対照表計上額 | D2: 徴収不能引当金計上額
B3: 【貸付金】
B5: 第三セクター等
B9: その他の貸付金
B13: 小計 | C13: =IFERROR(SUM(C6:C12),"") -> 0 | D13: =IFERROR(SUM(D6:D12),"") -> 0
B14: 【未収金】
B16: 税等未収金
B18: 市民税 | C18: 47235927 | D18: 3684402
B19: 固定資産税 | C19: 43765894 | D19: 2757251
B20: 軽自動車税 | C20: 2392000 | D20: 315744
B21: 都市計画税 | C21: 8742084 | D21: 603204
B23: その他の未収金
B25: 私立保育所保育料 | C25: 4421480 | D25: 70744
B26: 放課後児童会負担金 | C26: 1265350
B27: 放課後児童会延長保育負担金 | C27: 48675
B28: 公立保育所保育料 | C28: 1407250 | D28: 33774
B29: 公立幼稚園保育料 | C29: 22050
B30: 雑入 | C30: 76369178
B32: 小計 | C32: =IFERROR(SUM(C17:C31),"") -> 185669888 | D32: =IFERROR(SUM(D17:D31),"") -> 7465119
B33: 合計 | C33: =IFERROR(SUM(C13,C32),"") -> 185669888 | D33: =IFERROR(SUM(D13,D32),"") -> 7465119

Sheet 地方債（借入先別）
B2: （２）負債項目の明細
B3: ①地方債（借入先別）の明細 | L3: （単位：円）
B4: 種類 | C4: 地方債残高 | E4: 政府資金 | F4: 地方公共団体 金融機構 | G4: 市中銀行 | H4: その他の 金融機関 | I4: 市場公募債 | L4: その他
D5: うち1年内償還予定 | J5: うち共同発行債 | K5: うち住民公募債
B6: 【通常分】
B7: 一般公共事業 | C7: 572574944 | E7: 430151283 | F7: 17000000 | G7: 92234448 | H7: 3275000 | L7: 29914213
B8: 公営住宅建設
B9: 災害復旧 | C9: 1227437 | E9: 1227437
B10: 教育・福祉施設 | C10: 1384181298 | E10: 1059144156 | F10: 60889117 | G10: 26622454 | H10: 110614768 | L10: 126910803
B11: 一般単独事業 | C11: 2088416081 | E11: 379546806 | F11: 315869669 | G11: 334217384 | H11: 578873000 | L11: 479909222
B12: その他 | C12: 1029709776 | E12: 269841083 | F12: 550047131 | L12: 209821562
B13: 【特別分】
B14: 臨時財政対策債 | C14: 12689468074 | E14: 6831636490 | F14: 4555802584 | G14: 542636000 | H14: 759393000
B15: 減税補てん債 | C15: 426267651 | E15: 426267651
B16: 退職手当債 | C16: 740986758 | G16: 134250758 | H16: 606736000
B17: その他 | C17: 504560675 | G17: 463354956 | H17: 34679232 | L17: 6526487
B18: 合計 | C18: =IFERROR(SUM(C7:C12)+SUM(C14:C17),"") -> 19437392694 | D18: =IFERROR(SUM(D7:D12)+SUM(D14:D17),"") -> 0 | E18: =IFERROR(SUM(E7:E12)+SUM(E14:E17),"") -> 9397814906 | F18: =IFERROR(SUM(F7:F12)+SUM(F14:F17),"") -> 5499608501 | G18: 1593316000 | H18: 2093571000 | I18: 0 | J18: =IFERROR(SUM(J7:J12)+SUM(J14:J17),"") -> 0 | K18: =IFERROR(SUM(K7:K12)+SUM(K14:K17),"") -> 0 | L18: =IFERROR(SUM(L7:L12)+SUM(L14:L17),"") -> 853082287

Sheet 地方債（利率別など）
C3: ②地方債（利率別）の明細 | K3: （単位：円）
C4: 地方債残高 | D4: 1.5％以下 | E4: 1.5％超 2.0％以下 | F4: 2.0％超 2.5％以下 | G4: 2.5％超 3.0％以下 | H4: 3.0％超 3.5％以下 | I4: 3.5％超 4.0％以下 | J4: 4.0％超 | K4: （参考） 加重平均 利率
C6: =IFERROR(SUM(D6:J6),"") -> 19437392694 | D6: 14137418425 | E6: 4156352274 | F6: 1094857078 | G6: 1279316 | H6: 35171146 | I6: 4302442 | J6: 8012013 | K6: 1.11
C9: ③地方債（返済期間別）の明細 | L9: （単位：円）
C10: 地方債残高 | D10: １年以内 | E10: １年超 ２年以内 | F10: ２年超 ３年以内 | G10: ３年超 ４年以内 | H10: ４年超 ５年以内 | I10: ５年超 10年以内 | J10: 10年超 15年以内 | K10: 15年超 20年以内 | L10: 20年超
C12: =IFERROR(SUM(D12:L12),"") -> 19437392694 | E12: 114341000 | F12: 487012847 | G12: 136421607 | H12: 182158604 | I12: 5417500166 | J12: 5846420616 | K12: 6481937854 | L12: 771600000
C15: ④特定の契約条項が付された地方債の概要 | I15: （単位：円）
C16: 特定の契約条項が 付された地方債残高 | D16: 契約条項の概要

Sheet 引当金
B3: ⑤引当金の明細 | G3: （単位：円）
B4: 区分 | C4: 前年度末残高 | D4: 本年度増加額 | E4: 本年度減少額 | G4: 本年度末残高
E5: 目的使用 | F5: その他
B6: 固定資産
B7: 投資損失引当金 | C7: 3000000 | G7: =IFERROR(C7+D7-E7-F7,"") -> 3000000
B8: 徴収不能引当金 | C8: 65923534 | D8: 32821586 | E8: 62642825 | G8: =IFERROR(C8+D8-E8-F8,"") -> 36102295
B9: 流動資産
B10: 徴収不能引当金 | C10: 32821586 | D10: 7465119 | F10: 32821586 | G10: =IFERROR(C10+D10-E10-F10,"") -> 7465119
B11: 固定負債
B12: 退職手当引当金 | C12: 3045330000 | D12: 2880764179 | E12: 409045825 | G12: =IFERROR(C12+D12-E12-F12,"") -> 5517048354
B13: 損失補償等引当金 | C13: 101739000 | E13: 238000 | G13: =IFERROR(C13+D13-E13-F13,"") -> 101501000
B14: 流動負債
B15: 賞与等引当金 | C15: 261839289 | D15: 258699272 | E15: 261839289 | G15: =IFERROR(C15+D15-E15-F15,"") -> 258699272
B16: 合計 | C16: =IFERROR(SUM(C6:C15),"") -> 3510653409 | D16: =IFERROR(SUM(D6:D15),"") -> 3179750156 | E16: 733765939 | F16: 32821586 | G16: 5923816040

Sheet 補助金
B1: ２．行政コスト計算書の内容に関する明細
B2: （１）補助金等の明細 | I2: （単位：円）
B3: 区分 | D3: 名称 | E3: 相手先 | G3: 金額 | I3: 支出目的
A4: 合計行開始
B5: 他団体への公共施設等整備補助金等 (所有外資産分） | D5: 集会所修繕等補助金 | E5: 地区町会等 | G5: 3173000 | I5: 集会所の修繕等に対する補助
D6: 民間保育所等整備費補助金 | E6: 民間保育所等 | G6: 81445000 | I6: 民間保育所等の施設整備に対する補助
A7: 合計行終了
D8: 計 | G8: =IFERROR(SUM(G4:G7),"") -> 84618000
A9: 合計行開始
B10: その他の補助金等 | D10: 柏羽藤環境事業組合負担金 | E10: 柏羽藤環境事業組合 | G10: 712976000 | I10: 一部事務組合に対する負担
D11: 柏羽藤消防組合負担金 | E11: 柏羽藤消防組合 | G11: 782329000 | I11: 一部事務組合に対する負担
D12: 藤柏学校給食組合負担金 | E12: 藤柏学校給食組合 | G12: 323029000 | I12: 一部事務組合に対する負担
D13: 後期高齢者医療広域連合療養給付費負担金 | E13: 大阪府後期高齢者医療広域連合 | G13: 634092599 | I13: 広域連合に対する負担
D14: 年金生活者等支援臨時福祉給付金 | E14: 対象者 | G14: 216150000 | I14: 年金生活者等に対する臨時福祉給付金
D15: その他 | G15: 822347761
A16: 合計行終了
D17: 計 | G17: =IFERROR(SUM(G9:G16),"") -> 3490924360
B18: 合計 | G18: =IFERROR(SUM(G8,G17),"") -> 3575542360

Sheet 財源明細
B1: ３．純資産変動計算書の内容に関する明細
B2: （１）財源の明細 | F2: （単位：円）
B3: 会計 | C3: 区分 | D3: 財源の内容 | F3: 金額
A4: 合計行開始
C5: 税収等 | D5: 市税 | F5: 8754888743
D6: 地方譲与税 | F6: 123278000
D7: 利子割交付金 | F7: 47176000
D8: 株式等譲渡所得割交付金 | F8: 27797000
D9: 自動車取得税交付金 | F9: 49127000
D10: 地方特例交付金 | F10: 39963000
D11: 地方交付税 | F11: 4489919000
D12: 交通安全対策特別交付金 | F12: 12424000
D13: 分担金及び負担金 | F13: 247448703
D14: 寄附金 | F14: 126200000
D15: その他 | F15: 1362111410
A16: 合計行終了
D17: 小計 | F17: =SUM(F4:F16) -> 15280332856
A18: 合計行開始 | D18: 資本的 補助金
C19: 国県等補助金 | E19: 国庫支出金 | F19: 190565000
A21: 合計行終了
E22: 計 | F22: =SUM(F18:F21) -> 190565000
A23: 合計行開始 | D23: 経常的 補助金
E24: 国庫支出金 | F24: 4051720956
E25: 府支出金 | F25: 1610610860
A26: 合計行終了
E27: 計 | F27: =SUM(F23:F26) -> 5662331816
D28: 小計 | F28: =SUM(F22,F27) -> 5852896816
C29: 合計 | F29: =SUM(F17,F28) -> 21133229672

Sheet 財源情報明細
B4: （２）財源情報の明細 | E4: （単位：円）
B5: 区分 | C5: 金額 | D5: 内訳
D6: 国県等補助金 | E6: 地方債 | F6: 税収等 | G6: その他
B7: 純行政コスト | C7: =IFERROR(SUM(D7:G7),"") -> 23273570027 | D7: 5662331816 | E7: 1290923000 | F7: 12568786079 | G7: 3751529132
B8: 有形固定資産等の増加 | C8: =IFERROR(SUM(D8:G8),"") -> 434455917 | D8: 190565000 | E8: 225000000 | F8: 16900891 | G8: 1990026
B9: 貸付金・基金等の増加 | C9: 628824081 | F9: 573169858 | G9: 55654223
B10: その他 | C10: 0
B11: 合計 | C11: 24336850025 | D11: =IFERROR(SUM(D7:D10),"") -> 5852896816 | E11: =IFERROR(SUM(E7:E10),"") -> 1515923000 | F11: 13158856828 | G11: 3809173381

Sheet 資金明細
B1: ４．資金収支計算書の内容に関する明細
B2: （１）資金の明細 | C2: （単位：円）
B3: 種類 | C3: 本年度末残高
A4: 合計行開始
B5: 要求払預金 | C5: 974846673
A9: 合計行終了
B10: 合計 | C10: =IFERROR(SUM(C4:C9),"") -> 974846673

Sheet 財源会計テンプレート (hidden)
A2: 合計行開始
C3: 税収等
A6: 合計行終了
D7: 小計 | F7: =SUM(F2:F6) -> 0
A8: 合計行開始 | D8: 資本的 補助金
C9: 国県等補助金
A12: 合計行終了
E13: 計 | F13: =SUM(F8:F12) -> 0
A14: 合計行開始 | D14: 経常的 補助金
A18: 合計行終了
E19: 計 | F19: =SUM(F14:F18) -> 0
D20: 小計 | F20: =SUM(F13,F19) -> 0
C21: 合計 | F21: =SUM(F7,F20) -> 0
